[Event "FIDE Open World Rapid 2024"]
[Site "New York"]
[Date "2024.12.27"]
[Round "6.4"]
[White "Ghaem Maghami, Ehsan"]
[Black "Smirnov, Mark"]
[Result "1-0"]
[ECO "C60"]
[WhiteElo "2434"]
[BlackElo "2336"]
[Annotator "ChessBase"]
[PlyCount "151"]
[EventDate "2024.12.14"]
[EventType "swiss"]
[EventCountry "USA"]
[SourceTitle "playchess.com"]
[Source "ChessBase"]
[SourceQuality "1"]
[TimeControl "900+10"]

1. e4 {[%emt 0:00:13]} e5 {[%emt 0:00:01]} 2. Nf3 {[%emt 0:00:02]} Nc6 {[%emt 0:00:03]} 3. Bb5 {[%emt 0:00:02]} g6 {[%emt 0:00:03]} 4. O-O {[%emt 0:00:06]} Bg7 {[%emt 0:00:07]} 5. Bxc6 {[%emt 0:00:06]} dxc6 {[%emt 0:00:16]} 6. b3 {[%emt 0:00:03]} Bg4 {[%emt 0:01:32]} 7. h3 {[%emt 0:00:14]} h5 {[%emt 0:01:55]} 8. d3 {[%emt 0:00:13]} Be6 {[%emt 0:03:11]} 9. Bb2 {[%emt 0:00:35]} Qd6 {[%emt 0:01:41]} 10. Nbd2 {[%emt 0:05:30]} Ne7 {[%emt 0:02:11]} 11. Ng5 {[%emt 0:01:58]} O-O {[%emt 0:01:31]} 12. Nxe6 {[%emt 0:00:05]} Qxe6 {[%emt 0:00:02]} 13. b4 {[%emt 0:00:15]} a5 {[%emt 0:01:06]} 14. a3 {[%emt 0:00:03]} Nc8 {[%emt 0:00:31]} 15. Nb3 {[%emt 0:00:18]} axb4 {[%emt 0:00:13]} 16. axb4 {[%emt 0:00:03]} Nd6 {[%emt 0:00:10]} 17. Qd2 {[%emt 0:00:23]} Qe7 {[%emt 0:01:53]} 18. f4 {[%emt 0:00:44]} exf4 {[%emt 0:01:05]} 19. Bxg7 {[%emt 0:00:17]} Kxg7 {[%emt 0:00:01]} 20. Rxa8 {[%emt 0:01:34]} Rxa8 {[%emt 0:00:01]} 21. Qxf4 {[%emt 0:00:01]} f6 {[%emt 0:00:28]} 22. Nd4 {[%emt 0:00:26]} Re8 {[%emt 0:00:36]} 23. Nf3 {[%emt 0:00:37]} Nf7 {[%emt 0:00:10]} 24. Qg3 {[%emt 0:00:12]} Qd6 {[%emt 0:00:08]} 25. Qxd6 {[%emt 0:00:35]} cxd6 {[%emt 0:00:11]} 26. Ra1 {[%emt 0:00:01]} Ne5 {[%emt 0:00:13]} 27. Nd4 {[%emt 0:00:40]} Kf7 {[%emt 0:00:06]} 28. Nb3 {[%emt 0:00:29]} Re7 {[%emt 0:00:13]} 29. Ra7 {[%emt 0:00:03]} d5 {[%emt 0:00:11]} 30. exd5 {[%emt 0:00:20]} cxd5 {[%emt 0:00:02]} 31. Ra5 {[%emt 0:01:17]} Rc7 {[%emt 0:00:18]} 32. Nd4 {[%emt 0:00:06]} Nc6 {[%emt 0:00:10]} 33. Rc5 {[%emt 0:00:08]} Ke7 {[%emt 0:00:04]} 34. c3 {[%emt 0:00:01]} Rc8 {[%emt 0:00:15]} 35. Ne2 {[%emt 0:00:12]} Rd8 {[%emt 0:00:11]} 36. Nf4 {[%emt 0:02:33]} d4 {[%emt 0:00:02]} 37. Nxg6+ {[%emt 0:00:01]} Kf7 {[%emt 0:00:18]} 38. Nf4 {[%emt 0:00:01]} dxc3 {[%emt 0:00:03]} 39. Rxc3 {[%emt 0:00:06]} Rd4 {[%emt 0:00:16]} 40. b5 {[%emt 0:00:00]} Rxf4 {[%emt 0:00:10]} 41. bxc6 {[%emt 0:00:01]} bxc6 {[%emt 0:00:07]} 42. Rxc6 {[%emt 0:00:01]} Rd4 {[%emt 0:00:14]} 43. Rc3 {[%emt 0:00:03]} Kg6 {[%emt 0:00:09]} 44. Kf2 {[%emt 0:00:02]} Kg5 {[%emt 0:00:05]} 45. Rc5+ {[%emt 0:00:09]} f5 {[%emt 0:00:10]} 46. Ke3 {[%emt 0:00:03]} Rd8 {[%emt 0:00:16]} 47. Rc4 {[%emt 0:00:05]} Re8+ {[%emt 0:00:10]} 48. Kf3 {[%emt 0:00:02]} h4 {[%emt 0:00:01]} 49. Rc2 {[%emt 0:00:17]} f4 {[%emt 0:00:19]} 50. Rc5+ {[%emt 0:00:03]} Kf6 {[%emt 0:00:10]} 51. Kxf4 {[%emt 0:00:05]} Re2 {[%emt 0:00:10]} 52. Rc6+ {[%emt 0:00:20]} Kf7 {[%emt 0:00:09]} 53. Kf3 {[%emt 0:00:08]} Rd2 {[%emt 0:00:10]} 54. Rd6 {[%emt 0:00:03]} Rd1 {[%emt 0:00:04]} 55. Rd4 {[%emt 0:00:03]} Rf1+ {[%emt 0:00:01]} 56. Ke2 {[%emt 0:00:02]} Rg1 {[%emt 0:00:01]} 57. Kf2 {[%emt 0:00:04]} Rd1 {[%emt 0:00:01]} 58. Rxh4 {[%emt 0:00:05]} Rxd3 {[%emt 0:00:01]} 59. Rf4+ {[%emt 0:00:05]} Kg6 {[%emt 0:00:01]} 60. Rf3 {[%emt 0:00:02]} Rd2+ {[%emt 0:00:02]} 61. Kg3 {[%emt 0:00:02]} Kh5 {[%emt 0:00:01]} 62. Rf5+ {[%emt 0:00:15]} Kg6 {[%emt 0:00:02]} 63. Re5 {[%emt 0:00:02]} Ra2 {[%emt 0:00:01]} 64. h4 {[%emt 0:00:10]} Ra4 {[%emt 0:00:01]} 65. Rb5 {[%emt 0:00:04]} Kh6 {[%emt 0:00:02]} 66. Kh3 {[%emt 0:00:02]} Rc4 {[%emt 0:00:01]} 67. g3 {[%emt 0:00:03]} Ra4 {[%emt 0:00:01]} 68. Rb6+ {[%emt 0:00:06]} Kh7 {[%emt 0:00:03]} 69. h5 {[%emt 0:00:02]} Rc4 {[%emt 0:00:13]} 70. g4 {[%emt 0:00:04]} Rc5 {[%emt 0:00:01]} 71. Kh4 {[%emt 0:00:03]} Rc7 {[%emt 0:00:08]} 72. h6 {[%emt 0:00:21]} Rc5 {[%emt 0:00:39]} 73. g5 {[%emt 0:00:04]} Rc1 {[%emt 0:00:02]} 74. Rb7+ {[%emt 0:00:06]} Kg6 {[%emt 0:00:02]} 75. Rg7+ {[%emt 0:00:14]} Kf5 {[%emt 0:00:01]} 76. h7 {[%emt 0:00:24]} 1-0

[Event "FIDE Open World Rapid 2024"]
[Site "New York"]
[Date "2024.12.27"]
[Round "6.5"]
[White "Sindarov, Javokhir"]
[Black "Nakamura, Hikaru"]
[Result "1/2-1/2"]
[ECO "B48"]
[WhiteElo "2682"]
[BlackElo "2802"]
[Annotator "TA"]
[PlyCount "41"]
[EventDate "2024.12.14"]
[EventType "swiss"]
[EventCountry "USA"]
[SourceTitle "playchess.com"]
[Source "ChessBase"]
[SourceQuality "1"]
[TimeControl "900+10"]

{[%evp 17,41,-8,18,-10,0,-7,-25,-23,43,41,43,53,28,37,34,31,38,0,0,0,0,0,0,0,3,2]} 1. e4 {[%emt 0:00:01]} c5 {[%emt 0:00:04]} 2. Nf3 {[%emt 0:00:02]} e6 {[%emt 0:00:02]} 3. d4 {[%emt 0:00:27]} cxd4 {[%emt 0:00:03]} 4. Nxd4 {[%emt 0:00:01]} a6 {[%emt 0:00:02]} 5. Nc3 {[%emt 0:00:44]} b5 {[%emt 0:00:05]} 6. Be3 {[%emt 0:00:50]} Bb7 {[%emt 0:00:06]} 7. a3 {[%emt 0:00:04]} Nf6 {[%emt 0:01:03]} 8. Bd3 {[%emt 0:02:27]} Qc7 {[%emt 0:01:24]} 9. O-O {[%emt 0:00:37]} Nc6 {[%emt 0:00:16]} 10. Nxc6 {[%emt 0:00:11]} dxc6 {[%emt 0:00:49]} 11. f4 {[%emt 0:00:51][%cal Bf2f4,Bf4f5,Bf5e6,Be6f7][%mdl 32]} c5 {[%emt 0:00:25]} 12. e5 {[%emt 0:00:01]} c4 {[%emt 0:00:02]} ({Black should play} 12... Nd5 $11 13. Nxd5 exd5) 13. exf6 $14 {[%emt 0:01:10]} cxd3 {[%emt 0:00:13]} 14. cxd3 {[%emt 0:00:02]} gxf6 {[%emt 0:00:30]} 15. Rc1 {[%emt 0:00:05][%cal Oc3b5]} Qd7 {[%emt 0:02:24] [#]} 16. f5 $1 {[%emt 0:00:08] and fxe6 would now be decisive} Rg8 {[%emt 0:01:45][%cal Bh8g8,Bg8g4,Bg4e4][%mdl 32]} 17. Ne4 {[%emt 0:00:01]} Bxe4 {[%emt 0:01:24]} 18. dxe4 {[%emt 0:00:01]} Qxd1 {[%emt 0:00:01]} 19. Rfxd1 {[%emt 0:00:01] Black should prevent Kf2.} Rg4 {[%emt 0:00:01]} 20. fxe6 {[%emt 0:00:01]} Rxe4 {[%emt 0:00:19]} 21. exf7+ {[%emt 0:01:01]} 1/2-1/2

[Event "FIDE Open World Rapid 2024"]
[Site "New York"]
[Date "2024.12.27"]
[Round "6.5"]
[White "Zhalmakhanov, Ramazan"]
[Black "Kobalia, Mikhail"]
[Result "1-0"]
[ECO "C76"]
[WhiteElo "2486"]
[BlackElo "2543"]
[Annotator "ChessBase"]
[PlyCount "89"]
[EventDate "2024.12.14"]
[EventType "swiss"]
[EventCountry "USA"]
[SourceTitle "playchess.com"]
[Source "ChessBase"]
[SourceQuality "1"]
[TimeControl "900+10"]

1. e4 {[%emt 0:00:03]} e5 {[%emt 0:00:01]} 2. Nf3 {[%emt 0:00:02]} Nc6 {[%emt 0:00:02]} 3. Bb5 {[%emt 0:00:01]} a6 {[%emt 0:00:01]} 4. Ba4 {[%emt 0:00:02]} d6 {[%emt 0:00:02]} 5. O-O {[%emt 0:00:15]} Bd7 {[%emt 0:00:01]} 6. c3 {[%emt 0:00:15]} g6 {[%emt 0:00:03]} 7. d4 {[%emt 0:00:09]} Bg7 {[%emt 0:00:02]} 8. Re1 {[%emt 0:00:41]} Nge7 {[%emt 0:00:01]} 9. dxe5 {[%emt 0:01:22]} dxe5 {[%emt 0:00:02]} 10. Be3 {[%emt 0:00:03]} O-O {[%emt 0:00:08]} 11. Nbd2 {[%emt 0:00:04]} b6 {[%emt 0:00:13]} 12. b4 {[%emt 0:01:18]} Qe8 {[%emt 0:00:46]} 13. Bb3 {[%emt 0:00:34]} Kh8 {[%emt 0:00:01]} 14. Nc4 {[%emt 0:01:42]} f6 {[%emt 0:03:22]} 15. a4 {[%emt 0:00:22]} Be6 {[%emt 0:01:36]} 16. Qb1 {[%emt 0:01:51]} Bg8 {[%emt 0:00:17]} 17. a5 {[%emt 0:00:14]} b5 {[%emt 0:00:21]} 18. Ncd2 {[%emt 0:00:01]} Nd8 {[%emt 0:00:12]} 19. Bxg8 {[%emt 0:00:45]} Rxg8 {[%emt 0:00:26]} 20. Nb3 {[%emt 0:01:02]} Ne6 {[%emt 0:00:05]} 21. Nc5 {[%emt 0:00:34]} Nc8 {[%emt 0:00:10]} 22. Qb3 {[%emt 0:00:53]} Nxc5 {[%emt 0:00:03]} 23. Bxc5 {[%emt 0:00:01]} Bf8 {[%emt 0:00:09]} 24. Be3 {[%emt 0:00:01]} Nd6 {[%emt 0:00:20]} 25. Nd2 {[%emt 0:00:15]} Qc6 {[%emt 0:00:26]} 26. Bc5 {[%emt 0:00:17]} Nb7 {[%emt 0:00:36]} 27. Be3 {[%emt 0:00:49]} Nd6 {[%emt 0:00:02]} 28. f3 {[%emt 0:00:31]} Nc4 {[%emt 0:00:32]} 29. Nxc4 {[%emt 0:00:09]} bxc4 {[%emt 0:00:01]} 30. Qd1 {[%emt 0:01:31]} Be7 {[%emt 0:00:16]} 31. Qd5 {[%emt 0:00:14]} Qxd5 {[%emt 0:00:26]} 32. exd5 {[%emt 0:00:01]} Rgd8 {[%emt 0:00:11]} 33. Rad1 {[%emt 0:00:17]} Rab8 {[%emt 0:00:32]} 34. f4 {[%emt 0:00:59]} Rb5 {[%emt 0:01:24]} 35. fxe5 {[%emt 0:00:03]} fxe5 {[%emt 0:00:01]} 36. Bf4 {[%emt 0:00:17]} Rbxd5 {[%emt 0:01:39]} 37. Rxd5 {[%emt 0:00:15]} Rxd5 {[%emt 0:00:01]} 38. Rxe5 {[%emt 0:01:06]} Rd1+ {[%emt 0:00:08]} 39. Kf2 {[%emt 0:00:01]} Bf6 {[%emt 0:01:31]} 40. Rc5 {[%emt 0:00:27]} Rd3 {[%emt 0:00:14]} 41. Rxc4 {[%emt 0:00:10]} Rxc3 {[%emt 0:04:19]} 42. Rxc3 {[%emt 0:00:03]} Bxc3 {[%emt 0:00:01]} 43. b5 {[%emt 0:00:04]} Bxa5 {[%emt 0:00:05]} 44. bxa6 {[%emt 0:00:06]} Bb6+ {[%emt 0:00:00]} 45. Kf3 {[%emt 0:00:31]} 1-0

[Event "FIDE Open World Rapid 2024"]
[Site "New York"]
[Date "2024.12.27"]
[Round "6.6"]
[White "Abdusattorov, Nodirbek"]
[Black "Sadhwani, Raunak"]
[Result "1-0"]
[ECO "A28"]
[WhiteElo "2777"]
[BlackElo "2673"]
[Annotator "TA"]
[PlyCount "69"]
[EventDate "2024.12.14"]
[EventType "swiss"]
[EventCountry "USA"]
[SourceTitle "playchess.com"]
[Source "ChessBase"]
[SourceQuality "1"]
[TimeControl "900+10"]

{[%evp 10,69,3,-5,0,0,0,11,15,8,8,0,14,16,12,23,8,0,14,-2,51,47,144,148,148,127,187,161,179,106,106,99,100,89,75,88,77,75,72,86,79,75,120,112,118,118,260,257,501,496,544,518,587,602,986,937,1081,979,2141,1113,5147,5143]} 1. c4 {[%emt 0:00:03]} e5 {[%emt 0:00:02]} 2. Nc3 {[%emt 0:00:04]} Nf6 {[%emt 0:00:02]} 3. Nf3 {[%emt 0:00:02]} Nc6 {[%emt 0:00:02]} 4. d3 {[%emt 0:00:03]} d5 {[%emt 0:00:02]} 5. cxd5 {[%emt 0:00:02]} Nxd5 {[%emt 0:00:02]} 6. e4 {[%emt 0:00:03]} Nf6 {[%emt 0:00:02]} 7. Be2 {[%emt 0:00:03]} h6 {[%emt 0:00:11]} 8. O-O {[%emt 0:00:11]} Bd6 {[%emt 0:00:02] The position is equal.} 9. Be3 {[%emt 0:00:06]} O-O {[%emt 0:00:02]} 10. h3 {[%emt 0:00:10]} a6 {[%emt 0:00:04]} 11. Rc1 {[%emt 0:00:01]} Be6 {[%emt 0:00:36]} 12. d4 {[%emt 0:01:37]} exd4 {[%emt 0:00:07]} 13. Nxd4 {[%emt 0:00:02]} Nxd4 {[%emt 0:00:06]} 14. Qxd4 {[%emt 0:00:08] Black must now prevent e5.} Nd7 {[%emt 0:01:05]} (14... c5 $11 15. Qd2 Qe7) 15. Qd2 $14 {[%emt 0:01:20]} Qh4 {[%emt 0:03:27]} ({Black should try} 15... Qe7 $14) 16. f4 $16 {[%emt 0:00:05]} f5 {[%emt 0:02:46]} 17. e5 {[%emt 0:00:37]} Bc5 {[%emt 0:00:01]} (17... Bb4 $16) 18. Bxc5 $1 $18 {[%emt 0:01:29]} Nxc5 {[%emt 0:00:02] [#]} 19. Qe3 {[%emt 0:00:14]} (19. Qd4 $1 $18 {[%cal Rd4c5]} b6 20. b4) 19... Qe7 $16 {[%emt 0:00:33]} 20. Bf3 {[%emt 0:00:40]} Rad8 {[%emt 0:01:16] [#] Against Nd5} 21. Rfd1 $1 {[%emt 0:00:01] Wards off Rd3} Rxd1+ {[%emt 0:02:27]} 22. Rxd1 {[%emt 0:00:18]} a5 {[%emt 0:00:00]} 23. a3 {[%emt 0:00:48]} Kh8 {[%emt 0:00:26]} 24. Kh2 {[%emt 0:01:07]} b6 {[%emt 0:00:17]} 25. Nb5 {[%emt 0:00:56]} g5 {[%emt 0:02:33]} 26. b4 {[%emt 0:00:23] White is more active.} axb4 {[%emt 0:00:00]} 27. axb4 {[%emt 0:00:01]} Na6 {[%emt 0:00:12] This costs Black the game.} (27... Ne4 $16 28. Nd4 c5) 28. Nd4 $18 {[%emt 0:01:46]} g4 $2 {[%emt 0:00:25]} (28... Re8 29. Bb7 c5 30. Nxe6 (30. Bxa6 cxd4 31. Qxd4 Qg7 $18) 30... Qxb7) 29. Nxe6 {[%emt 0:00:41] White is clearly winning.} Qxe6 {[%emt 0:00:01]} 30. Bd5 {[%emt 0:01:00]} Qe7 {[%emt 0:00:01] Black is weak on the light squares} 31. e6 {[%emt 0:00:01][%cal Be5e6,Be6e7][%mdl 32]} Rg8 {[%emt 0:00:46]} 32. Bc4 {[%emt 0:00:37]} g3+ {[%emt 0:00:11]} 33. Kg1 {[%emt 0:00:01] White wants to mate with Qe5+.} Nxb4 {[%emt 0:00:19]} 34. Qe5+ {[%emt 0:00:09]} Qg7 {[%emt 0:00:15]} 35. e7 {[%emt 0:00:02] Weighted Error Value: White=0.05 (flawless) /Black=0.39.  Mistake:       	White=1     	Black=5      Inaccurate:     	---       	Black=2      OK:         	White=14    	Black=6      Best:        	White=1     	---        Strong:       	White=1     	---} ({Weaker is} 35. Qxf5 Nc6 $16) 1-0

[Event "FIDE Open World Rapid 2024"]
[Site "New York"]
[Date "2024.12.27"]
[Round "6.6"]
[White "Macovei, Andrei"]
[Black "Liang, Awonder"]
[Result "0-1"]
[ECO "C54"]
[WhiteElo "2477"]
[BlackElo "2687"]
[Annotator "ChessBase"]
[PlyCount "82"]
[EventDate "2024.12.14"]
[EventType "swiss"]
[EventCountry "USA"]
[SourceTitle "playchess.com"]
[Source "ChessBase"]
[SourceQuality "1"]
[TimeControl "900+10"]

1. e4 {[%emt 0:00:02]} e5 {[%emt 0:02:12]} 2. Nf3 {[%emt 0:00:02]} Nc6 {[%emt 0:00:01]} 3. Bc4 {[%emt 0:00:20]} Bc5 {[%emt 0:00:04]} 4. c3 {[%emt 0:00:13]} Nf6 {[%emt 0:00:04]} 5. d4 {[%emt 0:00:02]} exd4 {[%emt 0:00:01]} 6. e5 {[%emt 0:00:01]} d5 {[%emt 0:00:05]} 7. Be2 {[%emt 0:00:01]} Ne4 {[%emt 0:00:48]} 8. cxd4 {[%emt 0:00:02]} Bb6 {[%emt 0:00:01]} 9. Nc3 {[%emt 0:00:10]} O-O {[%emt 0:00:02]} 10. O-O {[%emt 0:00:24]} Ne7 {[%emt 0:00:02]} 11. Na4 {[%emt 0:02:16]} Ba5 {[%emt 0:00:29]} 12. a3 {[%emt 0:00:59]} c6 {[%emt 0:00:02]} 13. b4 {[%emt 0:00:01]} Bc7 {[%emt 0:00:02]} 14. Bb2 {[%emt 0:01:45]} f6 {[%emt 0:00:27]} 15. exf6 {[%emt 0:02:40]} Rxf6 {[%emt 0:00:02]} 16. Ne5 {[%emt 0:00:09]} Ng6 {[%emt 0:00:53]} 17. f3 {[%emt 0:00:49]} Nd6 {[%emt 0:00:02]} 18. Re1 {[%emt 0:00:19]} Nf4 {[%emt 0:00:24]} 19. Bf1 {[%emt 0:00:03]} Rh6 {[%emt 0:05:02]} 20. Bc1 {[%emt 0:00:42]} Qh4 {[%emt 0:02:38]} 21. Bxf4 {[%emt 0:00:02]} Qxf4 {[%emt 0:00:02]} 22. g3 {[%emt 0:00:00]} Qf8 {[%emt 0:00:08]} 23. Nc5 {[%emt 0:00:18]} b6 {[%emt 0:01:50]} 24. Nb3 {[%emt 0:01:32]} Nf7 {[%emt 0:00:39]} 25. f4 {[%emt 0:00:16]} Bf5 {[%emt 0:00:21]} 26. Rc1 {[%emt 0:00:08]} Be4 {[%emt 0:00:37]} 27. Bd3 {[%emt 0:00:37]} g5 {[%emt 0:01:02]} 28. Bxe4 {[%emt 0:00:43]} dxe4 {[%emt 0:00:01]} 29. Rxe4 {[%emt 0:00:01]} Nd6 {[%emt 0:00:05]} 30. Re1 {[%emt 0:00:09]} gxf4 {[%emt 0:00:01]} 31. Qg4+ {[%emt 0:00:01]} Kh8 {[%emt 0:00:01]} 32. Rxc6 {[%emt 0:00:13]} fxg3 {[%emt 0:00:02]} 33. hxg3 {[%emt 0:00:16]} Qf6 {[%emt 0:00:48]} 34. Nd7 {[%emt 0:01:22]} Qf7 {[%emt 0:00:17]} 35. Qg5 {[%emt 0:02:02]} Ne4 {[%emt 0:00:10]} 36. Rxe4 {[%emt 0:01:59]} Rxc6 {[%emt 0:00:02]} 37. Ne5 {[%emt 0:00:28]} Qxb3 {[%emt 0:01:14]} 38. Rg4 {[%emt 0:00:12]} Qd1+ {[%emt 0:00:19]} 39. Kf2 {[%emt 0:00:10]} Rf8+ {[%emt 0:00:16]} 40. Ke3 {[%emt 0:00:03]} Rc3+ {[%emt 0:00:05]} 41. Ke4 {[%emt 0:00:05]} Qh1+ {[%emt 0:00:03]} 0-1